[Event "45th FIDE Olympiad 2024"]
[Site "Budapest"]
[Date "2024.09.11"]
[Round "1.40"]
[White "Kavin, Mohan"]
[Black "Movahed, Sina"]
[Result "1/2-1/2"]
[ECO "E76"]
[WhiteElo "1997"]
[BlackElo "2528"]
[Annotator "TA"]
[PlyCount "107"]
[EventDate "2024.09.05"]
[EventType "team-tourn"]
[EventCountry "HUN"]
[SourceTitle "playchess.com"]
[Source "ChessBase"]
[SourceQuality "1"]
[WhiteTeam "Malaysia"]
[BlackTeam "Iran"]
[WhiteTeamCountry "MAS"]
[BlackTeamCountry "IRI"]
[TimeControl "40/5400+30:1800+30"]

{[%evp 16,107,29,-6,42,50,61,0,0,0,0,0,0,0,22,19,77,78,93,25,31,24,34,14,7,0,9,12,8,8,6,7,12,7,8,8,45,45,41,34,47,45,51,51,48,25,56,44,40,41,87,87,87,87,80,80,80,80,80,80,80,80,80,80,80,81,81,81,88,56,56,68,68,68,71,34,62,54,56,0,65,30,25,22,70,64,47,0,53,37,37,9,16,8]} 1. d4 {[%emt 0:00:06]} Nf6 {[%emt 0:00:11]} 2. c4 {[%emt 0:00:09]} g6 {[%emt 0:00:06]} 3. Nc3 {[%emt 0:00:07]} Bg7 {[%emt 0:00:05]} 4. e4 {[%emt 0:00:06]} d6 {[%emt 0:00:04]} 5. f4 {[%emt 0:00:09]} O-O {[%emt 0:00:51]} 6. Nf3 {[%emt 0:00:05]} c5 {[%emt 0:03:13]} 7. d5 {[%emt 0:00:10]} b5 {[%emt 0:07:46]} 8. cxb5 {[%emt 0:01:39]} a6 {[%emt 0:00:45]} 9. Bd2 {[%emt 0:12:12]} Qb6 {[%emt 0:15:41]} (9... e6 $11) 10. a4 $14 {[%emt 0:04:56] a5 is the strong threat.} e6 {[%emt 0:01:16]} 11. Bc4 {[%emt 0:04:43]} axb5 {[%emt 0:04:06]} 12. Bxb5 {[%emt 0:00:37]} exd5 {[%emt 0:07:37]} 13. e5 {[%emt 0:02:09]} Ne4 {[%emt 0:16:56] [#] ...c4 would now be deadly.} 14. Nxd5 {[%emt 0:01:03]} Qb7 {[%emt 0:00:07]} 15. Nc3 {[%emt 0:03:02]} d5 {[%emt 0:03:24]} (15... dxe5 $11 {remains equal.} 16. Nxe5 Bxe5 17. fxe5 Nxc3 18. Bxc3 Qxg2) 16. O-O $16 {[%emt 0:02:27]} Na6 {[%emt 0:01:18][%cal Bb8a6,Ba6c7,Bc7e6][%mdl 32] [#]} 17. Be1 {[%emt 0:03:31]} (17. Be3 $1 $16) 17... Nc7 $11 {[%emt 0:02:10]} 18. Bd3 {[%emt 0:00:52]} Ne6 {[%emt 0:01:36]} 19. Bxe4 {[%emt 0:04:28]} dxe4 {[%emt 0:00:32]} 20. Nd2 {[%emt 0:00:09]} Rd8 $132 {[%emt 0:06:12][%mdl 2048] Hoping for ...e3. Black is fighting back} 21. Ncxe4 {[%emt 0:00:11]} Qxb2 {[%emt 0:01:32][%cal Oe6f4]} 22. Rb1 {[%emt 0:02:03]} Qd4+ {[%emt 0:05:10]} 23. Bf2 {[%emt 0:00:40][%cal Be1f2,Bf2h4,Bh4e7][%mdl 32]} Qxa4 {[%emt 0:01:27]} 24. Qxa4 {[%emt 0:00:10]} Rxa4 {[%emt 0:00:07]} 25. Bh4 {[%emt 0:00:33]} Rf8 {[%emt 0:00:52]} (25... g5 {keeps more tension.} 26. fxg5 Ba6 27. g6 Bxf1 28. Bxd8 Bd3) 26. Be7 {[%emt 0:05:02][%csl LRc5,LRf8]} Re8 {[%emt 0:00:02]} 27. Rb8 {[%emt 0:00:32]} Bd7 {[%emt 0:04:38]} 28. Rfb1 {[%emt 0:03:00] aiming for Rxe8+.} Ra8 {[%emt 0:03:44]} 29. Rxa8 {[%emt 0:00:31]} Rxa8 {[%emt 0:00:03]} 30. Nxc5 {[%emt 0:00:19]} Bc6 {[%emt 0:01:05]} 31. Nxe6 {[%emt 0:02:32]} fxe6 {[%emt 0:00:02]} 32. Nc4 {[%emt 0:04:46]} Bh6 {[%emt 0:02:52]} (32... Kf7 $14 33. Bg5 Bf8) 33. g3 $16 {[%emt 0:00:29]} Re8 {[%emt 0:03:28]} 34. Bf6 {[%emt 0:01:09]} Bf8 {[%emt 0:01:49]} 35. Nd6 {[%emt 0:03:20]} Ra8 {[%emt 0:00:23]} 36. Rc1 {[%emt 0:01:24]} Ra6 {[%emt 0:00:31]} 37. Rc2 {[%emt 0:03:19]} h6 {[%emt 0:03:48]} 38. Kf2 {[%emt 0:00:54] White is more active.} Kh7 {[%emt 0:00:28]} 39. h3 {[%emt 0:01:00][%cal Bh2h3,Bh3h4][%mdl 32]} Kg8 {[%emt 0:00:28]} 40. Rc3 {[%emt 0:00:23]} Kh7 {[%emt 0:00:19]} 41. Ke3 {[%emt 0:30:20]} Kg8 {[%emt 0:30:17]} 42. g4 {[%emt 0:01:12]} Kh7 {[%emt 0:00:58]} 43. Rb3 {[%emt 0:02:52]} Ra8 {[%emt 0:00:22] Inhibits Rb8.} 44. h4 {[%emt 0:01:47]} Kg8 {[%emt 0:00:11]} 45. Rc3 {[%emt 0:01:39]} Ra6 {[%emt 0:00:08]} 46. Kd4 {[%emt 0:02:04]} Ra4+ {[%emt 0:00:42]} 47. Ke3 {[%emt 0:01:36]} Ra6 {[%emt 0:00:10]} 48. h5 {[%emt 0:00:09]} gxh5 {[%emt 0:01:11]} 49. gxh5 {[%emt 0:01:05]} Rb6 {[%emt 0:02:54]} (49... Bd5 $11) 50. Nc8 $14 {[%emt 0:01:42]} Ra6 {[%emt 0:00:10]} 51. Nd6 {[%emt 0:01:52] Dodges Be8} Rb6 {[%emt 0:00:07]} 52. Kd4 {[%emt 0:01:25]} Ra6 {[%emt 0:00:30]} 53. Rb3 {[%emt 0:01:00]} Ra4+ {[%emt 0:01:58]} 54. Ke3 {[%emt 0:02:46] Weighted Error Value: White=0.11 (very precise) /Black=0.10 (very precise) .  Mistake:       	White=1     	Black=3      Inaccurate:     	White=5     	Black=3      OK:         	White=21    	Black=24     Best:        	White=4     	Black=3} 1/2-1/2

[Event "45th FIDE Olympiad 2024"]
[Site "Budapest"]
[Date "2024.09.11"]
[Round "1.41"]
[White "Eltigani, Omar"]
[Black "Wojtaszek, Radoslaw"]
[Result "0-1"]
[ECO "D00"]
[WhiteElo "2241"]
[BlackElo "2681"]
[Annotator "TA"]
[PlyCount "76"]
[EventDate "2024.09.05"]
[EventType "team-tourn"]
[EventCountry "HUN"]
[SourceTitle "playchess.com"]
[Source "ChessBase"]
[SourceQuality "1"]
[WhiteTeam "Sudan"]
[BlackTeam "Poland"]
[WhiteTeamCountry "SUD"]
[BlackTeamCountry "POL"]
[TimeControl "40/5400+30:1800+30"]

{[%evp 9,76,0,0,0,0,0,0,0,0,-12,-4,0,0,0,0,0,0,0,0,0,0,0,0,-39,0,0,14,0,0,0,0,0,0,0,0,-2,30,-31,-22,-38,-19,-28,-28,-24,-20,-51,-8,-8,66,-17,-25,-28,-22,-42,0,-311,-322,-308,-316,-320,-322,-785,-967,-943,-927,-802,-447,-5820,-541]} 1. d4 {[%emt 0:00:04]} Nf6 {[%emt 0:00:05]} 2. Nc3 {[%emt 0:00:16]} d5 {[%emt 0:00:07]} 3. Bf4 {[%emt 0:00:19]} c5 {[%emt 0:00:08]} 4. e3 {[%emt 0:00:24]} a6 {[%emt 0:00:05]} 5. dxc5 {[%emt 0:00:31]} Qa5 {[%emt 0:00:07]} 6. Bxb8 {[%emt 0:01:42]} Rxb8 {[%emt 0:00:08][%cal Ba8b8,Bb8b6,Bb6c6][%mdl 32]} 7. Qd4 $1 {[%emt 0:00:32]} e6 {[%emt 0:00:44]} 8. b4 {[%emt 0:00:32] The position is equal.} Qc7 {[%emt 0:00:08]} 9. Nf3 {[%emt 0:05:31]} b6 {[%emt 0:06:42]} 10. cxb6 {[%emt 0:07:00]} Rxb6 {[%emt 0:00:03]} 11. a3 {[%emt 0:01:19]} Bd6 {[%emt 0:11:55]} 12. Na4 {[%emt 0:11:51]} Rc6 {[%emt 0:00:06]} 13. c3 {[%emt 0:04:57]} e5 {[%emt 0:04:46]} 14. Qd1 {[%emt 0:09:04]} O-O {[%emt 0:00:15]} 15. Be2 {[%emt 0:02:50]} Be6 {[%emt 0:03:22]} 16. h3 {[%emt 0:03:47]} Ne4 {[%emt 0:04:21]} 17. O-O {[%emt 0:02:44]} Ra8 {[%emt 0:02:47][%cal Oh7h6] [#]} 18. c4 $1 {[%emt 0:15:15]} dxc4 {[%emt 0:02:29]} 19. Qc2 {[%emt 0:01:16]} f5 {[%emt 0:16:51]} 20. Rac1 {[%emt 0:01:29][%cal Oa4c5]} h6 {[%emt 0:00:30]} 21. Nd2 {[%emt 0:06:43]} Nxd2 {[%emt 0:02:51]} 22. Qxd2 {[%emt 0:00:04][%cal Oa4c5]} e4 {[%emt 0:00:12]} 23. Rfd1 {[%emt 0:01:07]} (23. Nc5 $1 $11 Bxc5 24. Bxc4) 23... Rd8 {[%emt 0:01:14] Strongly threatening ...Bh2+.} 24. Kh1 {[%emt 0:00:38][%cal Oa4c5]} Be7 {[%emt 0:01:00]} 25. Qc2 {[%emt 0:01:25]} Rxd1+ {[%emt 0:06:35]} 26. Rxd1 {[%emt 0:00:41]} Qe5 {[%emt 0:01:01]} 27. Nc3 {[%emt 0:06:39]} Bf6 {[%emt 0:05:51]} 28. Qa4 {[%emt 0:01:49]} Qc7 {[%emt 0:04:30]} (28... Rd6 $11 29. Rc1 Bf7) 29. b5 {[%emt 0:01:10]} ({White should try} 29. Nd5 $14 Bxd5 30. Rxd5) 29... axb5 $11 {[%emt 0:02:59]} 30. Nxb5 {[%emt 0:00:05]} Qe7 {[%emt 0:03:14]} 31. Nd4 {[%emt 0:02:03]} Rc8 {[%emt 0:00:12]} 32. Qb5 $2 {[%emt 0:04:56][%mdl 8192] [#]} (32. Qa6 $1 $11 {and White is okay.} Bxd4 33. Rxd4) 32... Bxd4 $1 $19 {[%emt 0:02:47]} 33. exd4 {[%emt 0:00:03]} c3 $1 {[%emt 0:00:04][%cal Oc3c2] ...c2! is the strong threat.} (33... Qxa3 34. d5 Qb3 35. Qxb3 cxb3 36. Ba6 $16 (36. dxe6 b2 $17)) 34. d5 {[%emt 0:01:17]} c2 {[%emt 0:02:13]} 35. Rc1 {[%emt 0:00:37]} (35. dxe6 c1=Q (35... cxd1=R+ 36. Bxd1 Rc1 37. Qd5 $17) 36. Rxc1 Rxc1+ 37. Kh2 Qxe6 (37... Qxa3 $2 {perishes.} 38. Qd7 $18) 38. g3) 35... Qxa3 {[%emt 0:02:08] Black is clearly winning.} 36. Rxc2 {[%emt 0:00:10]} Rxc2 {[%emt 0:00:30]} 37. dxe6 {[%emt 0:01:21]} Rc1+ {[%emt 0:01:25]} 38. Bf1 {[%emt 0:01:10]} (38. Kh2 $142 Qd6+ 39. g3 Qxe6 40. Qb2) 38... Qd6 {[%emt 0:00:26] Weighted Error Value: White=0.61/Black=0.29 (precise) .  Loses game:     	White=1     	---        Mistake:       	White=3     	Black=1      Inaccurate:     	White=2     	Black=4      OK:         	White=13    	Black=12     Best:        	White=1     	Black=3      Strong:       	White=1     	Black=2} (38... Qd3 $142 39. Kh2 Qxf1 (39... Rxf1 40. Qe5 $11) 40. Qb8+ Kh7) 0-1

[Event "45th FIDE Olympiad 2024"]
[Site "Budapest"]
[Date "2024.09.11"]
[Round "1.41"]
[White "Kudakwashe, Chinake"]
[Black "Al Hosani, Omran"]
[Result "1-0"]
[ECO "D00"]
[WhiteElo "1859"]
[BlackElo "2241"]
[Annotator "ChessBase"]
[PlyCount "85"]
[EventDate "2024.09.05"]
[EventType "team-tourn"]
[EventCountry "HUN"]
[SourceTitle "playchess.com"]
[Source "ChessBase"]
[SourceQuality "1"]
[WhiteTeam "Cayman Islands"]
[BlackTeam "United Arab Emirates"]
[WhiteTeamCountry "CAY"]
[BlackTeamCountry "UAE"]
[TimeControl "40/5400+30:1800+30"]

1. d4 Nf6 2. Nc3 d5 3. Bf4 a6 4. e3 h6 5. h3 e6 6. Nf3 c5 7. Be2 Be7 8. O-O O-O 9. Ne5 b5 10. a3 Bb7 11. Bf3 Nc6 12. Ne2 Qb6 13. c3 c4 14. Qc2 a5 15. g4 Nxe5 16. Bxe5 Nd7 17. Bg2 b4 18. Bg3 Bd6 19. f4 bxa3 20. bxa3 Qc7 21. Bh4 f5 22. Bf3 g6 23. Kh1 Kh7 24. Rg1 Nf6 25. gxf5 gxf5 26. Ng3 Kh8 27. Bxf6+ Rxf6 28. Nh5 Rf7 29. Rg6 Rg8 30. Qg2 Qd8 31. Rg1 Rxg6 32. Qxg6 Qf8 33. Qxe6 Bc8 34. Qg6 Bb7 35. a4 Bc6 36. Qe6 Bd7 37. Qxd5 Qe7 38. Rg6 Qxe3 39. Rxh6+ Kg8 40. Rg6+ Kh8 41. Rxd6 Qe1+ 42. Kh2 Qf2+ 43. Bg2 1-0

[Event "45th FIDE Olympiad 2024"]
[Site "Budapest"]
[Date "2024.09.11"]
[Round "1.42"]
[White "Piorun, Kacper"]
[Black "Ahmed, Hassan"]
[Result "1-0"]
[ECO "B06"]
[WhiteElo "2599"]
[BlackElo "2234"]
[Annotator "TA"]
[PlyCount "97"]
[EventDate "2024.09.05"]
[EventType "team-tourn"]
[EventCountry "HUN"]
[SourceTitle "playchess.com"]
[Source "ChessBase"]
[SourceQuality "1"]
[WhiteTeam "Poland"]
[BlackTeam "Sudan"]
[WhiteTeamCountry "POL"]
[BlackTeamCountry "SUD"]
[TimeControl "40/5400+30:1800+30"]

{[%evp 9,97,69,79,59,51,41,57,42,84,81,127,73,70,29,29,0,5,7,15,29,26,39,20,0,37,34,39,31,52,47,53,20,39,37,42,14,17,17,52,32,55,43,55,72,94,90,90,71,87,90,90,90,90,93,118,125,183,72,117,89,235,235,208,208,233,242,338,337,414,420,415,421,409,406,452,263,493,493,489,489,489,498,483,479,1125,1125,1125,957,856,808]} 1. d4 {[%emt 0:00:04]} g6 {[%emt 0:00:04]} 2. e4 {[%emt 0:00:07]} Bg7 {[%emt 0:00:07]} 3. Nc3 {[%emt 0:00:08]} c5 {[%emt 0:00:39]} 4. dxc5 {[%emt 0:00:12]} Bxc3+ {[%emt 0:00:29]} 5. bxc3 {[%emt 0:00:05]} Qa5 {[%emt 0:00:14] Black is weak on the dark squares} 6. Qd4 {[%emt 0:00:30]} Nf6 {[%emt 0:00:10]} 7. Qb4 {[%emt 0:00:06]} Qc7 {[%emt 0:00:06]} 8. Bd3 {[%emt 0:00:09] White is slightly better.} Nc6 {[%emt 0:00:10]} 9. Qa4 {[%emt 0:00:24]} Qe5 {[%emt 0:00:08] [#]} (9... Ne5 $142) 10. Ne2 {[%emt 0:05:22]} (10. Qa3 $142 $1) 10... Qxc5 $16 {[%emt 0:01:33]} 11. O-O {[%emt 0:00:21]} d6 {[%emt 0:06:55]} 12. c4 {[%emt 0:05:21]} Bd7 {[%emt 0:12:22]} 13. Qb3 {[%emt 0:00:14]} Na5 {[%emt 0:06:21]} 14. Qc3 {[%emt 0:00:36]} Rc8 {[%emt 0:11:49][%cal Ra5c4]} 15. Be3 {[%emt 0:06:39]} Qc7 {[%emt 0:03:33][%cal Ra5c4]} 16. Bg5 {[%emt 0:05:06]} (16. c5 $5) 16... Qc5 {[%emt 0:07:40]} 17. Bxf6 {[%emt 0:08:51]} exf6 {[%emt 0:00:06]} 18. Qxf6 {[%emt 0:00:08]} Qe5 {[%emt 0:00:26]} 19. Qh4 {[%emt 0:00:06]} Nxc4 {[%emt 0:10:51]} 20. f4 {[%emt 0:01:10]} Qe7 {[%emt 0:06:49]} 21. Qf2 {[%emt 0:02:49][%cal Of2d4] Qd4! is the strong threat.} O-O {[%emt 0:01:36]} 22. Qd4 {[%emt 0:03:53]} d5 {[%emt 0:03:25]} 23. Nc3 {[%emt 0:10:20]} ({Much weaker is} 23. Qxa7 dxe4 24. Bxc4 Rxc4 $17) 23... Nb6 {[%emt 0:00:07][%cal Bc4b6,Bb6d5,Bd5e3][%mdl 32]} 24. exd5 {[%emt 0:07:46]} f5 {[%emt 0:02:11]} 25. Rab1 {[%emt 0:02:27][%cal Ba1b1,Bb1b7,Bb7a7][%mdl 32]} Qc5 {[%emt 0:03:35]} 26. Ne2 {[%emt 0:00:08]} Qxd5 {[%emt 0:05:23]} 27. Qxd5+ {[%emt 0:00:41]} Nxd5 {[%emt 0:00:04]} 28. Rxb7 {[%emt 0:00:06]} Bc6 {[%emt 0:00:05]} 29. Rxa7 {[%emt 0:00:29] Hoping for Nd4.} Ne3 {[%emt 0:00:26][%csl LRf1,LRg2]} 30. Rb1 {[%emt 0:02:58]} Bxg2 {[%emt 0:07:49][%cal Og2d5]} 31. Nd4 {[%emt 0:07:39] Re1 would now be deadly.} Bd5 {[%emt 0:01:32]} 32. a4 {[%emt 0:09:37]} Rfd8 {[%emt 0:01:20]} (32... Ra8 $16 {is a better defense.} 33. Rxa8 Rxa8) 33. Rb4 {[%emt 0:09:14]} (33. a5 $18 {is more deadly.}) 33... Ra8 {[%emt 0:03:51]} 34. Re7 {[%emt 0:02:29] White is more active.} Re8 {[%emt 0:00:18] Loses the game.} (34... Ng4 $16 35. h3 Nf6) 35. Rxe8+ $18 {[%emt 0:02:23]} Rxe8 {[%emt 0:00:01]} 36. a5 {[%emt 0:00:05]} Nd1 {[%emt 0:02:11]} 37. Ne2 {[%emt 0:02:10]} Bf3 {[%emt 0:01:26] [#]} 38. a6 $1 {[%emt 0:00:03]} Re7 {[%emt 0:01:36] [#]} (38... Bxe2 $2 {loses.} 39. a7 Bf3 (39... Bxd3 $2 40. Rb8 $18) 40. Rb8 $18) (38... Kg7 39. Rd4) 39. Rb1 $1 {[%emt 0:01:20]} Ne3 {[%emt 0:00:32]} 40. Nd4 {[%emt 0:00:09]} Bd5 {[%emt 0:00:05]} 41. Re1 {[%emt 0:35:46]} Kf7 {[%emt 0:30:18]} 42. a7 {[%emt 0:00:00]} (42. Bb5 $142) 42... Kf6 $2 {[%emt 0:00:00]} (42... Ba8 43. Bb5 Nd5 44. Rxe7+ Nxe7) 43. Ra1 {[%emt 0:00:00] White is clearly winning.} Ba8 {[%emt 0:00:00]} 44. Bb5 {[%emt 0:00:00] Wards off Rd7. Threatens to win with Ra6+.} ({Not} 44. Ra6+ Kg7 45. c4 Ng2 46. Ne6+ Kf7 $18) 44... Nd5 {[%emt 0:00:00]} 45. Bc6 {[%emt 0:00:00]} Nc7 {[%emt 0:00:00]} 46. Rb1 {[%emt 0:00:00] Black must now prevent Bxa8.} Bxc6 {[%emt 0:00:00]} (46... Ne6 $142 47. Bxa8 Rxa7) 47. Nxc6 {[%emt 0:00:00]} Re6 {[%emt 0:00:00] [#]} 48. Rb7 $1 {[%emt 0:00:00]} Rxc6 {[%emt 0:00:00] [#]} (48... Na8 49. Rb8) 49. Rxc7 $1 {[%emt 0:00:00][%mdl 512] Weighted Error Value: White=0.14 (very precise) /Black=0.29 (precise) .  Mistake:       	White=3     	Black=5      Inaccurate:     	White=2     	Black=5      OK:         	White=26    	Black=15     Best:        	White=2     	Black=3} 1-0

[Event "45th FIDE Olympiad 2024"]
[Site "Budapest"]
[Date "2024.09.11"]
[Round "1.42"]
[White "Ammar, Sedrani"]
[Black "Young, Christopher"]
[Result "1-0"]
[ECO "E94"]
[WhiteElo "2226"]
[BlackElo "1758"]
[Annotator "ChessBase"]
[PlyCount "111"]
[EventDate "2024.09.05"]
[EventType "team-tourn"]
[EventCountry "HUN"]
[SourceTitle "playchess.com"]
[Source "ChessBase"]
[SourceQuality "1"]
[WhiteTeam "United Arab Emirates"]
[BlackTeam "Cayman Islands"]
[WhiteTeamCountry "UAE"]
[BlackTeamCountry "CAY"]
[TimeControl "40/5400+30:1800+30"]

1. d4 Nf6 2. c4 g6 3. Nc3 Bg7 4. e4 d6 5. Be2 O-O 6. Nf3 Nbd7 7. O-O e5 8. d5 Nc5 9. Qc2 a5 10. Bg5 Bd7 11. b3 h6 12. Be3 Re8 13. a3 Ng4 14. Bxc5 dxc5 15. Ne1 f5 16. Nd3 b6 17. Bxg4 fxg4 18. b4 axb4 19. axb4 Bf8 20. bxc5 bxc5 21. Qd2 Kg7 22. Rfb1 Bd6 23. Rxa8 Qxa8 24. Qb2 Qa6 25. Nb5 Bxb5 26. Qxb5 Qxb5 27. Rxb5 Ra8 28. f3 gxf3 29. gxf3 Ra4 30. Nxc5 Rxc4 31. Ne6+ Kf6 32. Kg2 h5 33. h4 Rc2+ 34. Kg3 Rc1 35. Rb8 Rg1+ 36. Kh2 Rf1 37. Kg2 Rc1 38. Rd8 Rc2+ 39. Kh3 Rc3 40. Kg3 Ke7 41. Rg8 Kf7 42. Rg7+ Kf6 43. Rh7 Rc1 44. Kh2 Rc2+ 45. Kh3 Rc1 46. Nd8 Rh1+ 47. Kg2 Rxh4 48. Rf7+ Kg5 49. Ne6+ Kh6 50. Nxc7 Bxc7 51. Rxc7 Kg5 52. d6 Kf6 53. Re7 Rf4 54. Re8 h4 55. d7 h3+ 56. Kh2 1-0

[Event "45th FIDE Olympiad 2024"]
[Site "Budapest"]
[Date "2024.09.11"]
[Round "1.43"]
[White "Nader, Obeid"]
[Black "Bartel, Mateusz"]
[Result "0-1"]
[ECO "A45"]
[WhiteElo "2083"]
[BlackElo "2618"]
[Annotator "TA"]
[PlyCount "59"]
[EventDate "2024.09.05"]
[EventType "team-tourn"]
[EventCountry "HUN"]
[SourceTitle "playchess.com"]
[Source "ChessBase"]
[SourceQuality "1"]
[WhiteTeam "Sudan"]
[BlackTeam "Poland"]
[WhiteTeamCountry "SUD"]
[BlackTeamCountry "POL"]
[TimeControl "40/5400+30:1800+30"]

{[%evp 9,59,45,45,19,12,22,20,0,0,-20,7,3,2,-52,-58,-87,-14,-67,-6,-21,-11,-18,-9,-18,0,6,0,0,9,-11,0,0,17,12,7,-20,-14,-2,0,-22,-25,-42,-38,-58,-71,-77,-44,-35,-10,-236,-247,-241]} 1. d4 {[%emt 0:00:12]} Nf6 {[%emt 0:00:04]} 2. Bf4 {[%emt 0:00:18]} c6 {[%emt 0:00:06]} 3. c3 {[%emt 0:00:54]} Qb6 {[%emt 0:01:38]} 4. Qc2 {[%emt 0:04:36]} d6 {[%emt 0:00:29]} 5. Nd2 {[%emt 0:00:54]} Nh5 {[%emt 0:00:42]} 6. Nc4 {[%emt 0:12:00]} Qc7 {[%emt 0:05:09]} 7. Bd2 {[%emt 0:01:45]} b5 {[%emt 0:10:17]} 8. Na3 {[%emt 0:10:17] The position is equal.} a6 {[%emt 0:09:11]} 9. e3 {[%emt 0:05:06]} Nf6 {[%emt 0:01:33]} 10. c4 {[%emt 0:03:23][%cal Rc4b5]} Qb7 {[%emt 0:01:10]} 11. c5 {[%emt 0:03:47]} (11. Nf3 $11) 11... dxc5 $15 {[%emt 0:01:48]} 12. dxc5 {[%emt 0:02:24]} g6 {[%emt 0:00:46]} (12... Qc7 $17) 13. Bd3 {[%emt 0:08:08]} ({White should try} 13. Ba5 $1 $11) 13... Bg7 {[%emt 0:01:12]} (13... a5 $15) 14. Ba5 $1 $11 {[%emt 0:07:28]} O-O {[%emt 0:00:11]} 15. Nf3 {[%emt 0:01:31]} Bg4 {[%emt 0:00:50]} 16. Ne5 {[%emt 0:04:18]} Nbd7 {[%emt 0:00:51]} 17. Nxg4 {[%emt 0:00:45]} Nxg4 {[%emt 0:00:03]} 18. Rc1 {[%emt 0:03:15]} f5 {[%emt 0:11:40]} 19. h3 {[%emt 0:04:10]} Ngf6 {[%emt 0:01:22][%cal Bg4f6,Bf6d5,Bd5f4][%mdl 32]} 20. O-O {[%emt 0:03:10]} Nd5 {[%emt 0:00:11]} 21. Nb1 {[%emt 0:05:25]} e6 {[%emt 0:02:25]} 22. Nc3 {[%emt 0:03:04]} Rf7 {[%emt 0:01:01]} 23. Be2 {[%emt 0:07:46]} Bf8 {[%emt 0:04:59]} 24. e4 {[%emt 0:03:19]} Nf4 {[%emt 0:02:20]} 25. exf5 {[%emt 0:01:29]} exf5 {[%emt 0:03:21][%cal Oa8e8]} 26. Rfe1 {[%emt 0:01:38]} Nxc5 {[%emt 0:01:43]} 27. Bf1 {[%emt 0:00:42]} Nce6 {[%emt 0:01:12] Black is more active.} 28. Rcd1 {[%emt 0:01:49]} c5 {[%emt 0:01:19] Hoping for ...Nd4.} 29. g3 $2 {[%emt 0:00:48] [#]} (29. Qd2 $11 Ra7 30. a4) 29... Ng5 $1 $19 {[%emt 0:02:47] White must now prevent ...Nf3+. A dynamic duo of knights.} 30. Re3 {[%emt 0:00:00] Weighted Error Value: White=0.28 (precise) /Black=0.13 (very precise) .  Loses game:     	White=1     	---        Mistake:       	White=2     	Black=2      Inaccurate:     	White=2     	Black=2      OK:         	White=8     	Black=8      Best:        	White=1     	Black=1      Strong:       	White=1     	Black=1} 0-1

[Event "45th FIDE Olympiad 2024"]
[Site "Budapest"]
[Date "2024.09.11"]
[Round "1.43"]
[White "Shaw, Clifford"]
[Black "Ahmed, Fareed"]
[Result "0-1"]
[ECO "A03"]
[WhiteElo "1744"]
[BlackElo "2061"]
[Annotator "NA"]
[PlyCount "60"]
[EventDate "2024.09.05"]
[EventType "team-tourn"]
[EventCountry "HUN"]
[SourceTitle "playchess.com"]
[Source "ChessBase"]
[SourceQuality "1"]
[WhiteTeam "Cayman Islands"]
[BlackTeam "United Arab Emirates"]
[WhiteTeamCountry "CAY"]
[BlackTeamCountry "UAE"]
[TimeControl "40/5400+30:1800+30"]

1. f4 d5 2. Nf3 Nf6 3. e3 Bf5 4. b3 e6 5. Bb2 Be7 6. Be2 O-O 7. O-O h6 8. Ne5 Nbd7 9. g4 Bh7 10. d3 Nxe5 11. fxe5 Nd7 12. Nd2 f6 13. Nf3 fxe5 14. Nxe5 Nxe5 15. Bxe5 Bd6 16. Bf4 e5 17. Bg3 Qg5 18. Qc1 Rxf1+ 19. Kxf1 e4 20. Bxd6 cxd6 21. d4 h5 22. h3 Rf8+ 23. Ke1 Qh4+ 24. Kd2 Qxh3 25. gxh5 Rf2 26. Qg1 Rg2 27. Qf1 Qf3 28. Kd1 Rf2 29. Qe1 Qxe3 30. Qd2 Rxe2 0-1